lending/lending_fUSD_20250303
["ID","MTS","AMOUNT","RATE_DAILY","PERIOD"]
[355238313,1741033630184,595.61741432,0.00014447,2]
[355238314,1741033632155,550.75728972,0.00014447,2]
[355238315,1741033635127,595.61741432,0.00014496,2]
[355238316,1741033635157,298.0,0.000145,2]
[355238317,1741033635403,168.18415178,0.00014448,2]
[355238318,1741033636914,550.7572897,0.00014474,2]
[355238319,1741033640394,168.18415178,0.00014497,2]
[355238320,1741033641828,550.7572897,0.00014502,2]
[355238321,1741033671176,247.24,0.00013693,2]
[355238323,1741033682153,-300.0,0.00014529,2]
[355238336,1741033705770,-250.7572897,0.00014529,2]
[355238337,1741033705793,-49.2427103,0.00014545,2]
[355238338,1741033716985,-150.0,0.00014545,2]
[355238343,1741033731160,-150.0,0.00014545,2]
[355238345,1741033793098,-246.37470402,0.00014545,2]
[355238346,1741033793127,-150.0,0.00014546,2]
[355238347,1741033793156,-168.18415178,0.00014546,2]
[355238348,1741033793186,-1891.66,0.00014546,2]
[355238349,1741033793214,-348.0364662,0.00014546,2]
[355238350,1741033808541,-150.0,0.00014545,2]
[355238351,1741033818330,-150.0,0.00014546,2]
[355238364,1741033836816,-1739.9035338,0.00014546,2]
[355238365,1741033836828,-1832.2,0.00014546,2]
[355238366,1741033836838,-2537.54,0.00014546,2]
[355238367,1741033836849,-210.01104427,0.00014546,2]
[355238368,1741033836861,-1482.41,0.00014546,2]
[355238369,1741033836871,-2786.59,0.00014546,2]
[355238370,1741033836882,-500.0,0.00014546,2]
[355238371,1741033836892,-500.0,0.00014546,2]
[355238372,1741033836904,-1129.00078297,0.00014546,2]
[355238373,1741033836923,-180.82921703,0.00014546,2]
[355238374,1741033836934,-206.3030083,0.00014546,2]
[355238375,1741033836947,-480.129999,0.00014546,2]
[355238376,1741033836974,-1922.7869927,0.00014546,2]
[355238377,1741033836984,-2118.22,0.00014546,2]
[355238378,1741033836996,-825.15,0.00014546,2]
[355238379,1741033837007,-1380.26,0.00014546,2]
[355238380,1741033837017,-1291.41,0.00014546,2]
[355238381,1741033837027,-3196.95861589,0.00014546,2]
[355238382,1741033837059,-489.50138411,0.00014546,2]
[355238383,1741033837083,-2022.14,0.00014546,2]
[355238384,1741033837100,-1976.35,0.00014546,2]
[355238385,1741033837112,-845.03,0.00014546,2]
[355238386,1741033837125,-835.38,0.00014546,2]
[355238387,1741033837136,-798.22,0.00014546,2]
[355238388,1741033837149,-1606.69,0.00014546,2]
[355238389,1741033837163,-500.0,0.00014546,2]
[355238390,1741033837175,-1542.02,0.00014546,2]
[355238391,1741033837189,-500.0,0.00014546,2]
[355238392,1741033837205,-799.55,0.00014546,2]
[355238393,1741033837217,-53.61858589,0.00014546,2]
[355238394,1741033837237,-666.57141411,0.00014546,2]
[355238395,1741033837249,-25.99126459,0.00014546,2]
[355238396,1741033837286,-1127.161,0.00014546,2]
[355238397,1741033837314,-803.60773541,0.00014546,2]
[355238398,1741033837326,-2154.09226459,0.00014546,2]
[355238399,1741033837343,-3372.06773541,0.00014546,2]
[355238400,1741033837353,-609.8672413,0.00014546,2]
[355238403,1741033837371,-1146.6127587,0.00014546,2]
[355238405,1741033837383,-304.09009425,0.00014546,2]
[355238421,1741033838221,-195.90990575,0.00014546,2]
[355238423,1741033838231,-202.98704028,0.00014546,2]
[355238426,1741033838368,-1540.09295972,0.00014546,2]
[355238427,1741033838380,-978.71,0.00014546,2]
[355238428,1741033838391,-500.0,0.00014546,2]
[355238429,1741033838401,-500.0,0.00014546,2]
[355238430,1741033838412,-798.89704028,0.00014546,2]
[355238431,1741033838428,-1062.54295972,0.00014546,2]
[355238432,1741033838439,-145.05705028,0.00014547,2]
[355238433,1741033838477,-4.94294972,0.00014547,2]
[355238434,1741033838488,-959.25343939,0.00014547,2]
[355238435,1741033838499,-158.041163,0.00014547,2]
[355238436,1741033838510,-1677.802841,0.00014547,2]
[355238437,1741033838521,-733.24,0.00014547,2]
[355238439,1741033838531,-1513.92,0.00014547,2]
[355238441,1741033838540,-1249.31,0.00014547,2]
[355238443,1741033838551,-949.67,0.00014547,2]
[355238445,1741033838562,-1007.77,0.00014547,2]
[355238447,1741033838571,-500.0,0.00014547,2]
[355238449,1741033838582,-1657.25,0.00014547,2]
[355238451,1741033838592,-263.0676069,0.00014547,2]
[355238453,1741033838604,-236.9323931,0.00014547,2]
[355238455,1741033838614,-404.0376069,0.00014547,2]
[355238749,1741033841736,-498.85650385,0.00014546,2]
[355238757,1741033841799,-3391.20349615,0.00014546,2]
[355238759,1741033841810,-819.8423931,0.00014547,2]
[355238761,1741033841820,-1789.14,0.00014547,2]
[355238763,1741033841835,-500.0,0.00014547,2]
[355238765,1741033841846,-1074.87,0.00014547,2]
[355238767,1741033841857,-942.3,0.00014547,2]
[355238769,1741033841867,-976.35,0.00014547,2]
[355238771,1741033841878,-1562.37,0.00014547,2]
[355238773,1741033841890,-895.93,0.00014547,2]
[355238775,1741033841901,-500.0,0.00014547,2]
[355238777,1741033841912,-858.05,0.00014547,2]
[355238779,1741033841923,-1068.89,0.00014547,2]
[355238781,1741033841933,-500.0,0.00014547,2]
[355238783,1741033841944,-500.0,0.00014547,2]
[355238785,1741033841955,-1311.27,0.00014547,2]
[355238787,1741033841967,-500.0,0.00014547,2]
[355238789,1741033841977,-852.05,0.00014547,2]
[355238791,1741033841987,-1034.21,0.00014547,2]
[355238793,1741033841996,-500.0,0.00014547,2]
[355238795,1741033842006,-969.93,0.00014547,2]
[355238797,1741033842015,-1810.78,0.00014547,2]
[355238799,1741033842025,-657.92,0.00014547,2]
[355238801,1741033842035,-1701.56,0.00014547,2]
[355238803,1741033842044,-1706.49,0.00014547,2]
[355238805,1741033842053,-500.0,0.00014547,2]
[355238807,1741033842062,-761.78,0.00014547,2]
[355238809,1741033842072,-500.0,0.00014547,2]
[355238811,1741033842081,-500.0,0.00014547,2]
[355238813,1741033842090,-500.0,0.00014547,2]
[355238815,1741033842100,-500.0,0.00014547,2]
[355238817,1741033842109,-500.0,0.00014547,2]
[355238819,1741033842118,-500.0,0.00014547,2]
[355238821,1741033842128,-500.0,0.00014547,2]
[355238823,1741033842137,-295.8171066,0.00014547,2]
[355238825,1741033842147,-1000.83,0.00014547,2]
[355238827,1741033842156,-899.97,0.00014547,2]
[355238829,1741033842165,-2294.04,0.00014547,2]
[355238831,1741033842174,-930.97,0.00014547,2]
[355238833,1741033842184,-500.0,0.00014547,2]
[355238835,1741033842193,-1322.52,0.00014547,2]
[355238837,1741033842203,-948.61,0.00014547,2]
[355238839,1741033842217,-267.54682249,0.00014547,2]
[355238841,1741033842227,-1368.09,0.00014547,2]
[355238843,1741033842236,-1608.9,0.00014547,2]
[355238845,1741033842246,-868.7,0.00014547,2]
[355238847,1741033842255,-819.88,0.00014547,2]
[355238849,1741033842264,-1628.16,0.00014547,2]
[355238851,1741033842275,-530.98,0.00014547,2]
[355238853,1741033842285,-1529.29,0.00014547,2]
[355238855,1741033842295,-1462.37,0.00014547,2]
[355238857,1741033842304,-500.0,0.00014547,2]
[355238859,1741033842314,-536.66,0.00014547,2]
[355238861,1741033842323,-1907.84,0.00014547,2]
[355238863,1741033842332,-810.93,0.00014547,2]
[355238865,1741033842341,-1144.99,0.00014547,2]
[355238867,1741033842350,-1678.35,0.00014547,2]
[355238869,1741033842359,-1506.84,0.00014547,2]
[355238871,1741033842368,-1564.03,0.00014547,2]
[355238872,1741033842377,-597.93,0.00014547,2]
[355238874,1741033842390,-5143.56,0.00014547,2]
[355238876,1741033842400,-2861.13,0.00014547,2]
[355238878,1741033842410,-1880.77,0.00014547,2]
[355238880,1741033842419,-1171.88,0.00014547,2]
[355238882,1741033842431,-2312.53,0.00014547,2]
[355238884,1741033842441,-1503.29,0.00014547,2]
[355238886,1741033842452,-629.42,0.00014547,2]
[355238889,1741033842467,-6421.3,0.00014547,2]
[355238891,1741033842478,-234.62912135,0.00014547,2]
[355238893,1741033842507,-4038.46,0.00014547,2]
[355238895,1741033842517,-2802.39,0.00014547,2]
[355238897,1741033842526,-2081.59,0.00014547,2]
[355238900,1741033842536,-8688.75,0.00014547,2]
[355238901,1741033842546,-864.08,0.00014547,2]
[355238903,1741033842555,-500.0,0.00014547,2]
[355238905,1741033842565,-913.8,0.00014547,2]
[355238907,1741033842575,-34005.99,0.00014547,2]
[355238909,1741033842585,-1549.12,0.00014547,2]
[355238911,1741033842595,-3393.01,0.00014547,2]
[355238914,1741033842605,-3068.98,0.00014547,2]
[355238916,1741033842614,-12061.5,0.00014547,2]
[355238918,1741033842624,-729.7,0.00014547,2]
[355238920,1741033842634,-1578.68,0.00014547,2]
[355238922,1741033842644,-500.0,0.00014547,2]
[355238924,1741033842654,-7393.73,0.00014547,2]
[355238926,1741033842663,-3112.43,0.00014547,2]
[355238928,1741033842672,-1369.97,0.00014547,2]
[355238930,1741033842682,-415.83874388,0.00014547,2]
[355238932,1741033842691,-1805.33,0.00014547,2]
[355238933,1741033842701,-2125.98,0.00014547,2]
[355238936,1741033842713,-2887.3,0.00014547,2]
[355238938,1741033842723,-500.0,0.00014547,2]
[355238940,1741033842732,-3258.53,0.00014547,2]
[355238942,1741033842741,-3159.32,0.00014547,2]
[355238943,1741033842751,-1178.88,0.00014547,2]
[355238945,1741033842760,-2457.28,0.00014547,2]
[355238947,1741033842770,-5695.03,0.00014547,2]
[355238950,1741033842780,-938.42,0.00014547,2]
[355238951,1741033842789,-7729.52,0.00014547,2]
[355238953,1741033842799,-1834.25,0.00014547,2]
[355238956,1741033842808,-3015.62,0.00014547,2]
[355238958,1741033842818,-4765.81,0.00014547,2]
[355238960,1741033842827,-1701.61,0.00014547,2]
[355238961,1741033842837,-1684.96,0.00014547,2]
[355238964,1741033842847,-1546.05,0.00014547,2]
[355238966,1741033842856,-4798.36,0.00014547,2]
[355238967,1741033842866,-1677.86,0.00014547,2]
[355238969,1741033842875,-500.0,0.00014547,2]
[355238972,1741033842885,-3458.22,0.00014547,2]
[355238973,1741033842894,-3745.98,0.00014547,2]
[355238976,1741033842904,-2390.41,0.00014547,2]
[355238977,1741033842913,-699.56,0.00014547,2]
[355238979,1741033842923,-34265.61,0.00014547,2]
[355238982,1741033842932,-500.0,0.00014547,2]
[355238984,1741033842942,-703.86,0.00014547,2]
[355238986,1741033842952,-2785.59,0.00014547,2]
[355238987,1741033842964,-809.24,0.00014547,2]
[355238990,1741033842973,-904.29,0.00014547,2]
[355238992,1741033842983,-3347.86,0.00014547,2]
[355238994,1741033842992,-4410.12,0.00014547,2]
[355238995,1741033843002,-2098.75,0.00014547,2]
[355238997,1741033843012,-3581.66,0.00014547,2]
[355238999,1741033843021,-1395.15,0.00014547,2]
[355239001,1741033843031,-9855.49,0.00014547,2]
[355239003,1741033843040,-845.13,0.00014547,2]
[355239005,1741033843050,-951.56,0.00014547,2]
[355239008,1741033843060,-1300.67,0.00014547,2]
[355239010,1741033843070,-2068.22,0.00014547,2]
[355239012,1741033843080,-500.0,0.00014547,2]
[355239015,1741033843090,-1470.97,0.00014547,2]
[355239017,1741033843100,-2701.27,0.00014547,2]
[355239021,1741033843110,-2015.18,0.00014547,2]
[355239024,1741033843121,-2840.92,0.00014547,2]
[355239027,1741033843132,-6137.11,0.00014547,2]
[355239030,1741033843141,-2311.98,0.00014547,2]
[355239033,1741033843152,-1370.48,0.00014547,2]
[355239036,1741033843163,-1077.7,0.00014547,2]
[355239039,1741033843173,-2062.6,0.00014547,2]
[355239043,1741033843183,-1957.01,0.00014547,2]
[355239046,1741033843193,-663.92,0.00014547,2]
[355239050,1741033843202,-1141.02,0.00014547,2]
[355239053,1741033843215,-2659.58,0.00014547,2]
[355239057,1741033843225,-1167.97,0.00014547,2]
[355239061,1741033843235,-6036.04,0.00014547,2]
[355239064,1741033843245,-580.36533417,0.00014547,2]
[355239068,1741033843255,-500.0,0.00014547,2]
[355239071,1741033843266,-1941.84,0.00014547,2]
[355239073,1741033843277,-2044.97,0.00014547,2]
[355239075,1741033843287,-2707.57,0.00014547,2]
[355239077,1741033843297,-2932.83,0.00014547,2]
[355239079,1741033843308,-1512.99,0.00014547,2]
[355239081,1741033843319,-500.0,0.00014547,2]
[355239083,1741033843329,-2333.34,0.00014547,2]
[355239085,1741033843339,-1748.8,0.00014547,2]
[355239087,1741033843349,-824.29,0.00014547,2]
[355239089,1741033843361,-7653.8,0.00014547,2]
[355239091,1741033843371,-1983.67,0.00014547,2]
[355239093,1741033843381,-1832.0,0.00014547,2]
[355239095,1741033843392,-2631.52,0.00014547,2]
[355239097,1741033843402,-3029.68,0.00014547,2]
[355239099,1741033843411,-218.50756111,0.00014547,2]
[355239101,1741033843423,-1732.5,0.00014547,2]
[355239103,1741033843434,-1765.48,0.00014547,2]
[355239105,1741033843444,-1525.51,0.00014547,2]
[355239108,1741033843453,-1576.7,0.00014547,2]
[355239111,1741033843466,-2300.09,0.00014547,2]
[355239114,1741033843476,-500.0,0.00014547,2]
[355239117,1741033843486,-21277.89,0.00014547,2]
[355239120,1741033843501,-2628.08,0.00014547,2]
[355239123,1741033843511,-2512.16,0.00014547,2]
[355239125,1741033843520,-1106.78,0.00014547,2]
[355239126,1741033843531,-500.0,0.00014547,2]
[355239127,1741033843541,-648.98,0.00014547,2]
[355239128,1741033843551,-646.35,0.00014548,2]
[355239129,1741033843561,-500.0,0.00014548,2]
[355239130,1741033843570,-500.0,0.00014548,2]
[355239131,1741033843580,-392.7066286,0.00014548,2]
[355239132,1741033843590,-850.65,0.00014548,2]
[355239133,1741033843600,-500.0,0.00014548,2]
[355239134,1741033843610,-728.66,0.00014548,2]
[355239135,1741033843620,-500.0,0.00014548,2]
[355239136,1741033843630,-803.84,0.00014548,2]
[355239137,1741033843640,-500.0,0.00014548,2]
[355239139,1741033843650,-500.0,0.00014548,2]
[355239141,1741033843659,-500.0,0.00014548,2]
[355239143,1741033843669,-500.0,0.00014548,2]
[355239145,1741033843679,-1075.63,0.00014548,2]
[355239147,1741033843688,-500.0,0.00014548,2]
[355239149,1741033843697,-500.0,0.00014548,2]
[355239151,1741033843706,-500.0,0.00014548,2]
[355239153,1741033843718,-500.0,0.00014548,2]
[355239154,1741033843728,-500.0,0.00014548,2]
[355239157,1741033843738,-500.0,0.00014548,2]
[355239158,1741033843748,-500.0,0.00014548,2]
[355239160,1741033843757,-500.0,0.00014548,2]
[355239163,1741033843768,-500.0,0.00014548,2]
[355239164,1741033843777,-500.0,0.00014548,2]
[355239167,1741033843787,-1080.73,0.00014548,2]
[355239169,1741033843796,-500.0,0.00014548,2]
[355239170,1741033843805,-500.0,0.00014548,2]
[355239172,1741033843815,-940.0,0.00014548,2]
[355239175,1741033843824,-500.0,0.00014548,2]
[355239177,1741033843834,-505.85,0.00014548,2]
[355239179,1741033843843,-500.0,0.00014548,2]
[355239181,1741033843853,-967.94,0.00014548,2]
[355239183,1741033843862,-500.0,0.00014548,2]
[355239185,1741033843872,-1182.59,0.00014548,2]
[355239187,1741033843882,-880.56,0.00014548,2]
[355239189,1741033843891,-500.0,0.00014548,2]
[355239191,1741033843901,-500.0,0.00014548,2]
[355239193,1741033843910,-500.0,0.00014548,2]
[355239195,1741033843919,-1010.5,0.00014548,2]
[355239197,1741033843929,-697.09,0.00014548,2]
[355239199,1741033843939,-500.0,0.00014548,2]
[355239201,1741033843949,-500.0,0.00014548,2]
[355239203,1741033843960,-559.42,0.00014548,2]
[355239205,1741033843970,-655.08,0.00014548,2]
[355239207,1741033843980,-500.0,0.00014548,2]
[355239209,1741033843989,-500.0,0.00014548,2]
[355239211,1741033843999,-500.0,0.00014548,2]
[355239213,1741033844008,-500.0,0.00014548,2]
[355239215,1741033844018,-1184.95,0.00014548,2]
[355239217,1741033844028,-500.0,0.00014548,2]
[355239237,1741033844205,-551.29,0.00014548,2]
[355239239,1741033844218,-500.0,0.00014548,2]
[355239241,1741033844227,-500.0,0.00014548,2]
[355239243,1741033844237,-500.0,0.00014548,2]
[355239245,1741033844246,-1652.22,0.00014548,2]
[355239247,1741033844256,-500.0,0.00014548,2]
[355239249,1741033844267,-500.0,0.00014548,2]
[355239251,1741033844278,-500.0,0.00014548,2]
[355239253,1741033844289,-572.4,0.00014548,2]
[355239255,1741033844299,-500.0,0.00014548,2]
[355239257,1741033844309,-718.18,0.00014548,2]
[355239259,1741033844319,-500.0,0.00014548,2]
[355239261,1741033844329,-500.0,0.00014548,2]
[355239263,1741033844339,-1055.53,0.00014548,2]
[355239265,1741033844348,-1171.25,0.00014548,2]
[355239266,1741033844358,-500.0,0.00014548,2]
[355239268,1741033844368,-500.0,0.00014548,2]
[355239271,1741033844379,-500.0,0.00014548,2]
[355239273,1741033844391,-500.0,0.00014548,2]
[355239274,1741033844401,-500.0,0.00014548,2]
[355239276,1741033844411,-1484.08,0.00014548,2]
[355239279,1741033844424,-669.61,0.00014548,2]
[355239280,1741033844434,-500.0,0.00014548,2]
[355239282,1741033844444,-500.0,0.00014548,2]
[355239284,1741033844453,-500.0,0.00014548,2]
[355239286,1741033844464,-1037.6,0.00014548,2]
[355239288,1741033844475,-233.855847,0.00014548,2]
[355239290,1741033844485,-500.0,0.00014548,2]
[355239292,1741033844495,-500.0,0.00014548,2]
[355239294,1741033844504,-500.0,0.00014548,2]
[355239296,1741033844514,-919.0,0.00014548,2]
[355239298,1741033844524,-500.0,0.00014548,2]
[355239300,1741033844534,-500.0,0.00014548,2]
[355239302,1741033844544,-500.0,0.00014548,2]
[355239304,1741033844554,-500.0,0.00014548,2]
[355239306,1741033844564,-500.0,0.00014548,2]
[355239308,1741033844574,-778.98,0.00014548,2]
[355239310,1741033844584,-500.0,0.00014548,2]
[355239312,1741033844595,-245.01439429,0.00014548,2]
[355239314,1741033844604,-783.06,0.00014548,2]
[355239316,1741033844614,-500.0,0.00014548,2]
[355239318,1741033844624,-500.0,0.00014548,2]
[355239320,1741033844634,-1173.79,0.00014548,2]
[355239322,1741033844644,-500.0,0.00014548,2]
[355239324,1741033844654,-913.31,0.00014548,2]
[355239326,1741033844665,-500.0,0.00014548,2]
[355239328,1741033844675,-894.38,0.00014548,2]
[355239330,1741033844685,-1823.34,0.00014548,2]
[355239332,1741033844695,-500.0,0.00014548,2]
[355239334,1741033844705,-1496.35,0.00014548,2]
[355239336,1741033844718,-500.0,0.00014548,2]
[355239338,1741033844728,-500.0,0.00014548,2]
[355239340,1741033844738,-962.24,0.00014548,2]
[355239342,1741033844747,-500.0,0.00014548,2]
[355239344,1741033844756,-500.0,0.00014548,2]
[355239346,1741033844767,-500.0,0.00014548,2]
[355239348,1741033844776,-500.0,0.00014548,2]
[355239350,1741033844786,-1986.36,0.00014548,2]
[355239352,1741033844796,-500.0,0.00014548,2]
[355239354,1741033844805,-1286.95,0.00014548,2]
[355239356,1741033844815,-500.0,0.00014548,2]
[355239358,1741033844824,-500.0,0.00014548,2]
[355239360,1741033844834,-500.0,0.00014548,2]
[355239362,1741033844843,-702.52,0.00014548,2]
[355239364,1741033844852,-500.0,0.00014548,2]
[355239366,1741033844861,-841.2,0.00014548,2]
[355239368,1741033844870,-1452.5,0.00014548,2]
[355239370,1741033844880,-500.0,0.00014548,2]
[355239372,1741033844889,-1574.5,0.00014548,2]
[355239374,1741033844899,-918.33,0.00014548,2]
[355239376,1741033844908,-801.9,0.00014548,2]
[355239378,1741033844918,-788.21,0.00014548,2]
[355239380,1741033844927,-500.0,0.00014548,2]
[355239382,1741033844937,-1017.73,0.00014548,2]
[355239384,1741033844946,-500.0,0.00014548,2]
[355239386,1741033844955,-500.0,0.00014548,2]
[355239388,1741033844967,-1701.71,0.00014548,2]
[355239390,1741033844978,-500.0,0.00014548,2]
[355239392,1741033844988,-1448.62,0.00014548,2]
[355239394,1741033844998,-500.0,0.00014548,2]
[355239396,1741033845008,-500.0,0.00014548,2]
[355239398,1741033845017,-500.0,0.00014548,2]
[355239400,1741033845027,-630.37,0.00014548,2]
[355239402,1741033845036,-909.09,0.00014548,2]
[355239404,1741033845046,-872.86,0.00014548,2]
[355239406,1741033845055,-939.34,0.00014548,2]
[355239408,1741033845065,-1089.49,0.00014548,2]
[355239410,1741033845074,-862.66,0.00014548,2]
[355239412,1741033845084,-830.02,0.00014548,2]
[355239414,1741033845093,-500.0,0.00014548,2]
[355239416,1741033845103,-500.0,0.00014548,2]
[355239418,1741033845112,-1694.08,0.00014548,2]
[355239420,1741033845121,-1064.34,0.00014548,2]
[355239422,1741033845130,-500.0,0.00014548,2]
[355239424,1741033845140,-1347.98,0.00014548,2]
[355239426,1741033845150,-1326.5,0.00014548,2]
[355239428,1741033845160,-1067.21,0.00014548,2]
[355239430,1741033845171,-827.24,0.00014548,2]
[355239432,1741033845182,-500.0,0.00014548,2]
[355239434,1741033845193,-969.76,0.00014548,2]
[355239436,1741033845204,-500.0,0.00014548,2]
[355239438,1741033845217,-500.0,0.00014548,2]
[355239440,1741033845227,-500.0,0.00014548,2]
[355239442,1741033845237,-500.0,0.00014548,2]
[355239444,1741033845247,-500.0,0.00014548,2]
[355239446,1741033845258,-1115.6,0.00014548,2]
[355239448,1741033845268,-1918.64,0.00014548,2]
[355239450,1741033845278,-500.0,0.00014548,2]
[355239452,1741033845288,-610.4,0.00014548,2]
[355239455,1741033845312,-500.0,0.00014548,2]
[355239458,1741033845328,-1244.15,0.00014548,2]
[355239461,1741033845347,-500.0,0.00014548,2]
[355239464,1741033845365,-1313.38,0.00014548,2]
[355239466,1741033845383,-500.0,0.00014548,2]
[355239469,1741033845402,-500.0,0.00014548,2]
[355239473,1741033845422,-500.0,0.00014548,2]
[355239477,1741033845441,-500.0,0.00014548,2]
[355239479,1741033845460,-502.67605693,0.00014548,2]
[355239482,1741033845481,-502.80078117,0.00014548,2]
[355239485,1741033845499,-500.0,0.00014548,2]
[355239488,1741033845518,-500.0,0.00014548,2]
[355239491,1741033845536,-500.0,0.00014548,2]
[355239493,1741033845551,-965.43,0.00014548,2]
[355239496,1741033845571,-500.0,0.00014548,2]
[355239499,1741033845589,-1965.39,0.00014548,2]
[355239501,1741033845605,-500.0,0.00014548,2]
[355239504,1741033845625,-565.73,0.00014548,2]
[355239506,1741033845640,-500.0,0.00014548,2]
[355239509,1741033845656,-500.0,0.00014548,2]
[355239511,1741033845673,-1177.45,0.00014548,2]
[355239514,1741033845692,-500.0,0.00014548,2]
[355239516,1741033845715,-1120.59,0.00014548,2]
[355239520,1741033845739,-1595.37,0.00014548,2]
[355239522,1741033845757,-529.11,0.00014548,2]
[355239525,1741033845776,-556.73661368,0.00014548,2]
[355239528,1741033845795,-1503.47,0.00014548,2]
[355239530,1741033845815,-201.65,0.00014548,2]
[355239533,1741033845839,-1751.82,0.00014548,2]
[355239536,1741033845858,-212.67949192,0.00014548,2]
[355239538,1741033845875,-500.0,0.00014548,2]
[355239541,1741033845892,-724.12,0.00014548,2]
[355239543,1741033845909,-1212.92,0.00014548,2]
[355239546,1741033845926,-500.0,0.00014548,2]
[355239549,1741033845943,-500.0,0.00014548,2]
[355239551,1741033845960,-503.63164232,0.00014548,2]
[355239554,1741033845976,-500.0,0.00014548,2]
[355239556,1741033845993,-500.0,0.00014548,2]
[355239559,1741033846007,-500.0,0.00014548,2]
[355239561,1741033846023,-1387.02,0.00014548,2]
[355239564,1741033846039,-631.52,0.00014548,2]
[355239568,1741033846060,-500.0,0.00014548,2]
[355239573,1741033846076,-500.0,0.00014548,2]
[355239576,1741033846092,-500.0,0.00014548,2]
[355239579,1741033846107,-875.85,0.00014548,2]
[355239582,1741033846123,-500.0,0.00014548,2]
[355239585,1741033846137,-500.0,0.00014548,2]
[355239587,1741033846153,-500.0,0.00014548,2]
[355239590,1741033846167,-956.08,0.00014548,2]
[355239591,1741033846183,-777.89,0.00014548,2]
[355239592,1741033846198,-500.0,0.00014548,2]
[355239593,1741033846214,-500.0,0.00014548,2]
[355239594,1741033846229,-535.78680824,0.00014548,2]
[355239595,1741033846244,-791.81,0.00014548,2]
[355239596,1741033846260,-1136.86,0.00014548,2]
[355239597,1741033846276,-1140.25,0.00014548,2]
[355239598,1741033846292,-797.54,0.00014548,2]
[355239600,1741033846308,-500.0,0.00014548,2]
[355239602,1741033846323,-1087.93,0.00014548,2]
[355239605,1741033846339,-500.0,0.00014548,2]
[355239608,1741033846356,-637.83,0.00014548,2]
[355239610,1741033846371,-524.83,0.00014548,2]
[355239613,1741033846388,-697.42,0.00014548,2]
[355239615,1741033846403,-1071.84,0.00014548,2]
[355239618,1741033846420,-3527.89,0.00014548,2]
[355239620,1741033846441,-742.03,0.00014548,2]
[355239623,1741033846457,-500.0,0.00014548,2]
[355239626,1741033846476,-500.0,0.00014548,2]
[355239628,1741033846491,-1043.95,0.00014548,2]
[355239631,1741033846507,-1382.05,0.00014548,2]
[355239633,1741033846524,-19488.67,0.00014548,2]
[355239636,1741033846539,-500.0,0.00014548,2]
[355239638,1741033846554,-500.0,0.00014548,2]
[355239641,1741033846569,-711.8,0.00014548,2]
[355239643,1741033846584,-500.0,0.00014548,2]
[355239646,1741033846599,-1964.73,0.00014548,2]
[355239649,1741033846615,-703.67,0.00014548,2]
[355239651,1741033846631,-500.0,0.00014548,2]
[355239654,1741033846647,-795.26,0.00014548,2]
[355239657,1741033846662,-500.0,0.00014548,2]
[355239659,1741033846678,-1522.13,0.00014548,2]
[355239662,1741033846694,-500.0,0.00014548,2]
[355239665,1741033846711,-163.89828706,0.00014548,2]
[355239667,1741033846729,-1531.84,0.00014548,2]
[355239670,1741033846746,-500.0,0.00014548,2]